bitfinex/quotes_ETHUSD_20250425
["timestamp","ask_amount","ask_price","bid_price","bid_amount"]
[1745550576982,0.3167718,1748.0,1747.7,5.72162953]
[1745550577376,0.3167718,1748.0,1747.7,5.7215624]
[1745550577951,0.3167718,1748.0,1747.8,5.72129671]
[1745550578985,0.3167718,1748.0,1747.9,5.72115109]
[1745550579290,0.3167718,1748.0,1747.9,0.14032296]
[1745550579453,5.7427718,1748.1,1747.9,5.86135382]
[1745550580486,5.7427718,1748.1,1748.0,6.54242379]
[1745550580688,5.7427718,1748.1,1748.0,7.78280155]
[1745550580847,0.3167718,1748.1,1748.0,7.92256027]
[1745550581181,5.7427718,1748.4,1748.1,5.72028955]
[1745550581383,5.7427718,1748.4,1748.2,0.13851374]
[1745550581856,0.3167718,1748.3,1748.2,0.13851374]
[1745550583343,0.3167718,1748.3,1748.2,5.85868305]
[1745550583547,0.3167718,1748.3,1748.2,0.13851374]
[1745550585682,0.3167718,1748.3,1748.2,5.85868305]
[1745550586078,0.3167718,1748.3,1748.2,6.65248305]
[1745550586380,5.426,1748.4,1748.2,6.65248305]
[1745550586381,5.7427718,1748.4,1748.3,5.71984213]
[1745550586679,0.3167718,1748.4,1748.3,5.85662528]
[1745550587179,5.426,1748.5,1748.3,5.85662528]
[1745550588382,0.3167718,1748.4,1748.3,5.85662528]
[1745550592798,0.3167718,1748.4,1748.3,7.9130842]
[1745550593363,5.426,1748.6,1748.5,5.71918787]
[1745550593675,5.426,1748.6,1748.5,5.85433768]
[1745550594073,5.426,1748.6,1748.5,6.64333768]
[1745550596408,0.78730637,1748.8,1748.5,12.36252555]
[1745550596602,1.10407817,1748.8,1748.6,5.7188219]
[1745550596903,1.10407817,1748.8,1748.7,0.13375003]
[1745550598380,1.10407817,1748.8,1748.7,5.85228379]
[1745550599668,0.3167718,1748.8,1748.7,5.85228379]
[1745550599869,5.415,1748.9,1748.8,6.54890677]
[1745550600292,0.3167718,1749.0,1748.9,5.71787981]
[1745550600700,0.3167718,1749.0,1748.9,5.84866003]
[1745550601771,1.10407817,1749.0,1748.9,5.84866003]
[1745550601974,4.10407817,1749.0,1748.9,0.13078022]
[1745550602185,4.10407817,1749.0,1748.7,5.71845071]
[1745550602401,0.78730637,1748.8,1748.7,5.71845071]
[1745550604007,0.78730637,1748.8,1748.6,5.71866964]
[1745550604300,0.78730637,1748.8,1748.7,5.71853376]
[1745550604879,0.78730637,1748.8,1748.6,5.71864512]
[1745550604880,0.78730637,1748.8,1748.6,5.71866702]
[1745550605280,0.78730637,1748.8,1748.4,5.71927162]
[1745550605506,3.78730637,1748.6,1748.3,5.71983381]
[1745550605707,0.78730637,1748.4,1748.2,5.7199869]
[1745550606016,4.10407817,1748.6,1748.3,5.71984213]
[1745550606316,4.10407817,1748.6,1748.0,0.8027]
[1745550606503,0.78730637,1748.4,1748.2,5.71992519]
[1745550607111,4.10407817,1748.6,1748.4,5.71943287]
[1745550607312,4.10407817,1748.6,1748.4,11.43874829]
[1745550607558,0.3167718,1748.6,1748.5,5.71918787]
[1745550608108,0.3167718,1748.7,1748.6,5.7188608]
[1745550608320,4.3167718,1748.7,1748.6,5.7188608]
[1745550608512,0.3167718,1748.7,1748.6,5.7188608]
[1745550608713,0.3167718,1748.7,1748.5,5.7189799]
[1745550608914,0.3167718,1748.7,1748.6,5.7188608]
[1745550609211,0.3167718,1748.7,1748.6,5.85109901]
[1745550613084,0.3167718,1748.7,1748.6,0.13223821]
[1745550613519,3.3167718,1748.7,1748.3,5.7198363]
[1745550613861,0.78730637,1748.6,1748.3,5.71961742]
[1745550614114,0.78730637,1748.6,1748.4,5.85173406]
[1745550614408,0.84686834,1748.5,1748.4,5.85173406]
[1745550617300,0.84686834,1748.5,1748.4,0.13223526]
[1745550617505,0.84686834,1748.5,1748.4,5.71951498]
[1745550617741,0.84686834,1748.5,1748.4,5.85175024]
[1745550619639,0.84686834,1748.5,1748.4,0.13223526]
[1745550619848,0.84686834,1748.5,1748.3,5.719647]
[1745550620023,0.78730637,1748.6,1748.4,0.1330126]
[1745550620223,1.16603701,1748.6,1748.3,5.719647]
[1745550620424,1.16603701,1748.6,1748.5,0.13252647]
[1745550620649,1.16603701,1748.6,1748.3,5.719647]
[1745550620846,0.31872649,1748.5,1748.3,5.719647]
[1745550621582,0.31872649,1748.4,1748.3,5.719647]
[1745550621737,0.85008016,1748.4,1748.3,5.719647]
[1745550622438,0.53135367,1748.4,1748.3,5.719647]
[1745550623367,0.53135367,1748.4,1748.3,7.62891273]
[1745550623524,0.85008016,1748.5,1748.4,5.71951498]
[1745550623839,0.85008016,1748.5,1748.4,6.48481498]
[1745550624017,0.85008016,1748.7,1748.6,5.7188608]
[1745550624221,0.85008016,1748.7,1748.6,5.851562]
[1745550625170,0.85008016,1748.7,1748.6,0.1327012]
[1745550625388,1.63738653,1748.7,1748.6,0.1327012]
[1745550626383,0.85008016,1748.7,1748.6,6.651862]
[1745550627866,0.31872649,1748.7,1748.6,6.651862]
[1745550628169,0.78730637,1748.8,1748.6,0.1327012]
[1745550628471,0.78730637,1748.8,1748.6,5.85154891]
[1745550628773,0.53135367,1748.7,1748.6,5.85154891]
[1745550628944,0.85008016,1748.7,1748.6,5.85154891]
[1745550631676,0.85008016,1748.7,1748.6,5.97667197]
[1745550635295,0.85008016,1748.7,1748.6,0.25782426]
[1745550636001,3.85008016,1748.7,1748.6,0.25782426]
[1745550636326,1.81856443,1749.6,1748.6,0.25782426]
[1745550636327,0.28125806,1749.6,1748.7,5.71839478]
[1745550636473,6.19130637,1749.8,1749.3,5.71633656]
[1745550636674,4.0,1749.4,1749.3,5.71657234]
[1745550637607,6.19130637,1749.8,1749.4,5.71612444]
[1745550637772,6.19130637,1749.8,1749.5,5.71571681]
[1745550639296,6.19130637,1749.8,1749.6,0.25254458]
[1745550640185,6.19130637,1749.8,1749.5,5.71567891]
[1745550640394,6.19130637,1749.8,1749.6,0.25254458]
[1745550642014,6.19130637,1749.8,1749.6,5.96811333]
[1745550642213,6.19130637,1749.8,1749.7,5.71526547]
[1745550642405,6.19130637,1749.8,1749.7,0.24794177]
[1745550642709,6.19130637,1749.8,1749.7,5.71526547]
[1745550642882,6.19130637,1749.8,1749.7,5.96320724]
[1745550643609,6.19130637,1749.8,1749.7,0.24794177]
[1745550643811,6.19130637,1749.8,1749.6,0.7798]
[1745550643980,6.19130637,1749.8,1749.7,0.24847812]
[1745550644179,6.19130637,1749.8,1749.6,12.86008122]
[1745550644391,6.19130637,1749.8,1749.7,0.24847812]
[1745550644594,6.19130637,1749.8,1749.6,12.86008122]
[1745550644788,6.19130637,1749.8,1749.6,7.1447027]
[1745550645075,6.19130637,1749.8,1749.7,0.24847812]
[1745550645384,6.19130637,1749.8,1749.7,5.71526547]
[1745550645619,0.78730637,1750.4,1749.7,5.71526547]
[1745550645620,6.34,1751.5,1750.0,5.71428571]
[1745550645930,5.402,1750.5,1750.3,5.71310212]
[1745550646226,4.0,1750.4,1750.3,5.71310212]
[1745550646921,3.78730637,1750.4,1750.1,0.7568]
[1745550647084,0.78730637,1750.2,1750.1,0.7568]
[1745550647283,3.78730637,1750.4,1750.1,6.4707201]
[1745550648146,3.78730637,1750.4,1750.1,6.47058397]
[1745550648856,3.78730637,1750.4,1750.1,0.7568]
[1745550649360,3.78730637,1750.4,1750.1,6.47073606]
[1745550649559,6.18930637,1750.4,1750.1,1.97527739]
[1745550649737,6.18930637,1750.4,1750.1,6.47045174]
[1745550649930,6.18930637,1750.4,1750.2,5.71361163]
[1745550650761,6.18930637,1750.4,1750.1,6.47060951]
[1745550650963,6.18930637,1750.4,1750.2,5.71361743]
[1745550651261,6.18930637,1750.4,1750.2,1.21842269]
[1745550651676,3.0,1750.3,1749.9,0.7842]
[1745550651966,0.78730637,1750.0,1749.9,6.49881226]
[1745550652635,0.78730637,1750.0,1749.9,0.7842]
[1745550653050,0.78730637,1750.0,1749.9,7.148705]
[1745550653231,0.78730637,1750.2,1750.0,5.71427863]
[1745550653429,0.78730637,1750.2,1749.9,0.7842]
[1745550653629,0.78730637,1750.0,1749.8,5.71480888]
[1745550653871,0.78730637,1750.0,1749.9,0.57148089]
[1745550654235,0.78730637,1750.0,1749.9,0.79070012]
[1745550655595,0.78730637,1750.0,1749.9,0.21921923]
[1745550656093,6.18730637,1750.0,1749.9,0.2193353]
[1745550656243,6.18730637,1750.0,1749.5,5.7157167]
[1745550656439,0.78730637,1749.8,1749.6,0.22081288]
[1745550656644,0.78730637,1749.8,1749.6,0.81446584]
[1745550657584,0.78730637,1749.8,1749.6,6.53001173]
[1745550657746,0.78730637,1749.8,1749.6,0.81446584]
[1745550657947,0.78730637,1749.8,1749.6,6.52999197]
[1745550658988,0.78730637,1749.8,1749.6,0.81446584]
[1745550659168,0.78730637,1749.8,1749.6,0.22081288]
[1745550661083,0.78730637,1749.8,1749.7,0.20123469]
[1745550661582,0.78730637,1749.8,1749.5,5.71569041]
[1745550661784,0.78730637,1749.8,1749.7,0.20123469]
[1745550661944,0.78730637,1749.8,1749.6,0.20172727]
[1745550662148,0.78730637,1749.8,1749.4,12.23592618]
[1745550662349,0.78730637,1749.8,1749.7,0.20123469]
[1745550662549,0.78730637,1749.8,1749.5,5.71591197]
[1745550662795,0.78730637,1749.8,1749.7,0.20123469]
[1745550662991,0.78730637,1749.8,1749.6,0.20172727]
[1745550663193,0.78730637,1749.8,1749.7,0.20123469]
[1745550663588,0.78730637,1749.8,1749.6,5.71548139]
[1745550663801,6.18730637,1750.0,1749.7,0.20123469]
[1745550664179,6.18730637,1750.0,1749.6,5.71541195]
[1745550664376,0.31638232,1749.9,1749.8,0.20074216]
[1745550664593,0.31638232,1749.9,1749.7,0.20123469]
[1745550664789,0.31638232,1749.9,1749.8,0.20074216]
[1745550665195,0.31638232,1749.9,1749.6,5.71532051]
[1745550665400,0.31638232,1749.9,1749.8,0.20074216]
[1745550665599,0.31638232,1749.9,1749.7,0.20282094]
[1745550665799,0.31638232,1749.9,1749.8,0.20232841]
[1745550666500,0.31638232,1749.9,1749.7,5.71502586]
[1745550666703,0.31638232,1749.9,1749.8,0.20232841]
[1745550667303,0.31638232,1749.9,1749.8,5.91726726]
[1745550667816,0.31638232,1749.9,1749.8,0.20232841]
[1745550668808,5.4,1750.0,1749.8,0.20232841]
[1745550669326,5.71638232,1750.0,1749.8,5.91724235]
[1745550669623,5.70838232,1750.0,1749.9,5.71461226]
[1745550670119,5.392,1750.0,1749.9,0.20237765]
[1745550670555,5.392,1750.0,1749.8,5.71481752]
[1745550670757,5.392,1750.0,1749.9,0.20237765]
[1745550671047,5.392,1750.0,1749.7,6.46709909]
[1745550671362,5.392,1750.0,1749.8,5.91763489]
[1745550671649,5.70838232,1750.0,1749.8,5.91763489]
[1745550671814,5.70838232,1750.0,1749.9,5.71461226]
[1745550672016,5.70838232,1750.0,1749.9,5.91698991]
[1745550672646,5.392,1750.0,1749.9,0.20237765]
[1745550672813,5.392,1750.0,1749.8,5.71474848]
[1745550673019,5.392,1750.0,1749.9,0.20175856]
[1745550673245,5.392,1750.0,1749.9,5.71461226]
[1745550673445,5.392,1750.0,1749.9,5.91637082]
[1745550674321,3.31638232,1750.1,1750.0,6.47528571]
[1745550674649,3.31638232,1750.1,1750.0,6.6776617]
[1745550674823,0.31638232,1750.1,1750.0,6.6776617]
[1745550675447,5.70838232,1750.2,1750.0,6.6776617]
[1745550675653,5.70838232,1750.2,1750.0,6.67762781]
[1745550675816,6.49568869,1750.2,1750.0,0.20237599]
[1745550676137,3.0,1750.1,1749.6,5.71529281]
[1745550676311,3.0,1750.1,1749.3,5.71650225]
[1745550676312,0.78730637,1749.8,1749.5,0.7871]
[1745550676525,6.17930637,1749.8,1749.4,5.71611148]
[1745550676713,6.17930637,1749.8,1749.4,6.93806607]
[1745550676909,0.78730637,1749.6,1749.3,5.71637611]
[1745550677146,0.78730637,1749.6,1749.4,11.43209557]
[1745550677451,0.78730637,1749.6,1749.4,5.71604427]
[1745550677817,1.10368869,1749.6,1749.3,5.71643846]
[1745550678015,1.10368869,1749.6,1749.3,0.57164385]
[1745550678242,1.10368869,1749.6,1749.2,5.71668937]
[1745550678448,1.10368869,1749.6,1749.2,5.71666462]
[1745550678817,1.10368869,1749.6,1749.2,5.71689915]
[1745550679560,1.10368869,1749.6,1749.2,5.71666129]
[1745550680314,1.10368869,1749.6,1749.3,5.71637399]
[1745550680521,0.31638232,1749.6,1749.3,5.71634296]
[1745550680823,0.31638232,1749.6,1749.3,6.28797726]
[1745550681051,0.31638232,1749.6,1749.3,5.71634296]
[1745550681231,1.10368869,1749.6,1749.1,0.7871]
[1745550681431,1.10368869,1749.6,1749.1,6.5041912]
[1745550681647,0.31638232,1749.5,1749.1,0.7871]
[1745550681967,1.10368869,1749.6,1749.1,0.7871]
[1745550682335,1.10368869,1749.6,1749.0,6.48940324]
[1745550682547,0.31638232,1749.5,1749.0,12.20671124]
[1745550682732,0.78730637,1749.4,1749.0,6.48940324]
[1745550683334,0.78730637,1749.4,1749.1,5.71710417]
[1745550683547,0.31638232,1749.4,1749.2,5.71685827]
[1745550683863,0.31638232,1749.4,1749.1,5.71710417]
[1745550684269,0.31638232,1749.4,1749.2,0.20665846]
[1745550684567,0.31638232,1749.5,1749.1,5.71710417]
[1745550684763,0.31638232,1749.5,1749.3,0.20616559]
[1745550684971,0.31638232,1749.5,1749.3,5.71652636]
[1745550685153,0.31638232,1749.5,1749.4,0.20567277]
[1745550685859,0.31638232,1749.6,1749.4,5.92190634]
[1745550686059,0.31638232,1749.6,1749.5,6.30810946]
[1745550686237,0.31638232,1749.6,1749.5,7.30626045]
[1745550686867,1.10368869,1749.9,1749.6,5.71542563]
[1745550687166,4.10368869,1749.9,1749.7,0.20446564]
[1745550687473,4.10368869,1749.9,1749.6,5.71542563]
[1745550687675,4.10368869,1749.9,1749.7,0.20446564]
[1745550687877,4.10368869,1749.9,1749.6,5.71542563]
[1745550688040,4.10368869,1749.9,1749.7,0.20446564]
[1745550688240,4.10368869,1749.9,1749.6,6.99704914]
[1745550688441,4.10368869,1749.9,1749.7,0.20423299]
[1745550688643,4.10368869,1749.9,1749.6,6.99704914]
[1745550688857,4.10368869,1749.9,1749.7,0.20423299]
[1745550689055,4.10368869,1749.9,1749.6,6.99704914]
[1745550689255,4.10368869,1749.9,1749.7,0.20423299]
[1745550689454,3.31638232,1749.9,1749.7,6.41482369]
[1745550689746,3.31638232,1749.9,1749.8,0.20374041]
[1745550691549,0.31638232,1749.9,1749.8,5.91867926]
[1745550691864,0.78730637,1750.1,1749.8,5.91867926]
[1745550691865,3.31638232,1750.0,1749.8,0.20374041]
[1745550692257,3.31638232,1750.0,1749.8,0.86558883]
[1745550693885,3.31638232,1750.0,1749.8,6.58052695]
[1745550695554,3.31638232,1750.0,1749.8,0.86558883]
[1745550696184,3.31638232,1750.0,1749.8,0.20374041]
[1745550696397,3.31638232,1750.0,1749.8,5.91867571]
[1745550696900,3.31638232,1750.0,1749.8,0.20374041]
[1745550697458,3.31638232,1750.0,1749.8,5.91850456]
[1745550698990,3.31638232,1750.0,1749.8,0.20374041]
[1745550699188,3.31638232,1750.0,1749.8,5.91845469]
[1745550699500,3.31638232,1750.0,1749.8,6.67095469]
[1745550699803,0.31638232,1750.0,1749.8,7.33805542]
[1745550700009,0.31638232,1750.0,1749.9,5.71461226]
[1745550700325,0.78730637,1750.2,1749.9,5.91688433]
[1745550700469,5.383,1750.3,1750.0,5.71410473]
[1745550700663,5.383,1750.3,1750.1,0.18051726]
[1745550700881,5.69938232,1750.3,1750.1,0.18051726]
[1745550701501,5.69938232,1750.3,1750.1,0.76997946]
[1745550702371,5.69938232,1750.3,1750.2,6.47483272]
[1745550702714,0.31638232,1750.3,1750.2,5.89764828]
[1745550703217,3.31638232,1750.4,1750.2,5.89746509]
[1745550703373,3.31638232,1750.4,1750.3,0.58976483]
[1745550703800,3.31638232,1750.4,1750.3,0.77301797]
[1745550703974,3.31638232,1750.4,1750.3,0.18325314]
[1745550704383,3.31638232,1750.4,1750.2,5.71362518]
[1745550704601,3.31638232,1750.4,1750.3,5.89639647]
[1745550705198,0.31638232,1750.4,1750.3,5.89639647]
[1745550705880,0.31638232,1750.4,1750.3,0.18309018]
[1745550706099,1.10368869,1750.5,1750.3,0.77276147]
[1745550706298,4.10368869,1750.5,1750.3,0.18309018]
[1745550706502,4.10368869,1750.5,1750.1,12.77810598]
[1745550706792,4.10368869,1750.5,1750.2,0.18335101]
[1745550706983,4.10368869,1750.5,1750.3,5.71330396]
[1745550707183,4.10368869,1750.5,1750.2,5.71348555]
[1745550707384,4.10368869,1750.5,1750.4,0.18236642]
[1745550707911,4.10368869,1750.5,1750.1,7.06439141]
[1745550708109,4.10368869,1750.5,1750.4,0.18236642]
[1745550708328,4.10368869,1750.5,1750.2,5.71363246]
[1745550708499,4.10368869,1750.5,1750.4,0.18236642]
[1745550708700,4.10368869,1750.5,1750.2,5.71363246]
[1745550709022,4.10368869,1750.5,1750.3,0.18285869]
[1745550709526,4.10368869,1750.5,1750.4,0.18236642]
[1745550709883,4.10368869,1750.5,1750.2,5.71350561]
[1745550710089,4.10368869,1750.5,1750.3,0.18285869]
[1745550710419,4.10368869,1750.5,1750.2,5.71354151]
[1745550710720,4.10368869,1750.5,1750.3,0.18285869]
[1745550711625,0.78730637,1750.4,1750.3,0.18285869]
[1745550711801,4.10368869,1750.5,1749.9,5.71449057]
[1745550712121,0.78730637,1750.1,1749.9,5.71449057]
[1745550712287,0.78730637,1750.1,1750.0,0.16836982]
[1745550713023,1.10368869,1750.1,1750.0,0.16836982]
[1745550714024,1.10368869,1750.1,1749.9,5.71446656]
[1745550714322,1.10368869,1750.1,1750.0,0.16879324]
[1745550714930,0.31638232,1750.1,1750.0,5.88307895]
[1745550715688,0.31638232,1750.1,1750.0,0.16879324]
[1745550716025,0.31638232,1750.1,1750.0,5.88307895]
[1745550716599,0.31638232,1750.1,1750.0,0.16879324]
[1745550717005,0.31638232,1750.1,1750.0,5.88307895]
[1745550717727,0.31638232,1750.1,1750.0,6.71257895]
[1745550719020,5.382,1750.2,1750.0,6.71257895]
[1745550719649,0.31638232,1750.1,1750.0,6.71257895]
[1745550720146,0.31638232,1750.1,1750.0,0.99829324]
[1745550720345,0.31638232,1750.1,1750.0,0.16879324]
[1745550720744,0.31638232,1750.1,1749.7,6.5290808]
[1745550720918,0.78730637,1749.8,1749.2,0.814]
[1745550721110,6.16930637,1749.8,1749.5,5.71588667]
[1745550721460,8.382,1749.8,1749.7,5.71526547]
[1745550721755,3.0,1749.8,1749.7,5.71526547]
[1745550721962,0.31638232,1749.8,1749.7,5.71526547]
[1745550722115,0.31638232,1749.8,1749.7,7.68252818]
[1745550723351,5.68938232,1750.0,1749.7,7.68252818]
[1745550723552,5.68938232,1750.0,1749.8,5.71485766]
[1745550723728,8.68938232,1750.0,1749.9,5.71461226]
[1745550723913,5.68938232,1750.0,1749.8,5.71470986]
[1745550724114,5.68938232,1750.0,1749.9,5.71461226]
[1745550724115,8.68938232,1750.0,1749.9,5.71461226]
[1745550724415,8.68938232,1750.0,1749.8,5.71470986]
[1745550725058,0.31638232,1749.9,1749.8,5.71470986]
[1745550726015,0.31638232,1749.9,1749.8,6.94012304]
[1745550726686,3.31638232,1750.0,1749.8,6.94012304]
[1745550726997,3.31638232,1750.0,1749.8,5.71470986]
[1745550727552,3.31638232,1750.0,1749.9,5.71461226]
[1745550727755,3.31638232,1750.0,1749.7,6.53921315]
[1745550727987,3.31638232,1750.0,1749.7,0.8242]
[1745550728148,3.31638232,1750.0,1749.5,6.48150972]
[1745550728149,0.78730637,1749.9,1749.5,6.48150972]
[1745550728353,0.31638232,1749.8,1749.5,6.48150972]
[1745550728585,0.31638232,1749.8,1749.5,6.48164146]
[1745550728784,0.78730637,1749.7,1749.4,5.71608733]
[1745550728960,0.78730637,1749.7,1749.4,5.71604355]
[1745550729160,0.78730637,1749.7,1749.5,0.17232513]
[1745550729465,1.10368869,1749.7,1749.5,0.17232513]
[1745550730427,0.78730637,1749.7,1749.5,0.17232513]
[1745550731170,6.16130637,1749.7,1749.3,6.54842253]
[1745550731482,9.16130637,1749.7,1749.6,0.17183247]
[1745550731673,9.16130637,1749.7,1749.3,6.54842253]
[1745550731674,3.0,1749.6,1749.3,6.54836079]
[1745550731985,3.0,1749.6,1749.3,5.71636079]
[1745550733088,3.31749235,1749.6,1749.2,7.10875629]
[1745550733303,3.31749235,1749.6,1749.3,5.71645365]
[1745550734258,3.31749235,1749.6,1749.2,7.10875937]
[1745550734463,3.31749235,1749.6,1749.2,7.10869701]
[1745550734782,3.31749235,1749.6,1749.2,7.10890166]
[1745550735157,0.78730637,1749.5,1749.0,6.49275271]
[1745550735483,0.78730637,1749.5,1749.0,6.49274394]
[1745550735646,0.78730637,1749.5,1748.9,5.71777358]
[1745550736154,0.78730637,1749.3,1748.9,5.71777358]
[1745550736658,6.16130637,1749.3,1748.9,5.71777358]
[1745550736862,5.374,1749.3,1749.0,5.7173254]
[1745550737059,5.374,1749.3,1749.2,5.71689915]
[1745550737267,5.374,1749.3,1749.1,6.48657719]
[1745550738796,5.374,1749.3,1749.0,11.43467028]
[1745550738964,5.69149235,1749.3,1749.0,6.4981253]
[1745550739565,5.69149235,1749.3,1749.0,6.49812214]
[1745550740460,5.69149235,1749.3,1749.0,7.71970519]
[1745550741711,5.69149235,1749.3,1749.0,7.71969186]
[1745550741898,5.69149235,1749.3,1749.0,0.7808]
[1745550742070,5.69149235,1749.3,1749.0,6.49833699]
[1745550742502,5.69149235,1749.3,1749.0,6.49820935]
[1745550743701,5.69149235,1749.3,1748.9,6.51793093]
[1745550744198,5.69149235,1749.3,1749.0,0.18034445]
[1745550745092,6.47879872,1749.3,1749.0,0.18034445]
[1745550745800,6.47879872,1749.3,1748.8,5.7179984]
[1745550746008,6.47879872,1749.3,1749.1,0.18000559]
[1745550746227,3.0,1749.2,1748.7,0.8213]
[1745550746449,1.08730637,1749.1,1748.5,11.43797739]
[1745550746746,1.08730637,1749.1,1748.6,5.71884482]
[1745550746908,1.08730637,1749.1,1748.6,5.71880203]
[1745550747310,1.08730637,1749.1,1748.7,5.71840604]
[1745550747640,0.31749235,1749.2,1748.7,0.7889]
[1745550747814,0.31749235,1749.2,1749.1,5.717226]
[1745550748022,5.376,1749.4,1749.1,5.717226]
[1745550748345,5.376,1749.4,1749.2,5.716853]
[1745550748846,8.376,1749.4,1749.2,5.71672546]
[1745550749212,8.376,1749.4,1749.2,6.86010711]
[1745550749507,3.31749235,1749.6,1749.2,1.14338165]
[1745550749713,5.69349235,1749.6,1749.4,5.71607444]
[1745550749913,0.31749235,1749.6,1749.4,5.71607444]
[1745550750116,0.31749235,1749.6,1749.3,6.5395896]
[1745550750315,3.31749235,1749.6,1749.4,5.71619942]
[1745550750516,3.31749235,1749.6,1749.3,6.53958437]
[1745550750731,3.31749235,1749.6,1749.4,5.71609833]
[1745550751314,3.31749235,1749.6,1749.3,6.53952164]
[1745550751953,3.31749235,1749.6,1749.4,5.71618153]
[1745550752644,3.31749235,1749.6,1749.3,6.53957777]
[1745550753083,3.31749235,1749.6,1749.4,5.71623055]
[1745550753843,0.31749235,1749.6,1749.5,6.54691883]
[1745550754489,5.367,1749.8,1749.7,5.71526547]
[1745550754654,2.3,1749.9,1749.8,5.71493885]
[1745550755183,2.3,1749.9,1749.8,6.52743885]
[1745550755351,2.3,1749.9,1749.8,7.75170928]
[1745550756480,0.31703251,1750.1,1750.0,5.71428571]
[1745550757574,5.366,1750.2,1750.0,5.71428571]
[1745550758483,5.366,1750.2,1750.0,5.71412112]
[1745550758693,8.366,1750.2,1750.1,5.7139592]
[1745550758895,3.31703251,1750.2,1750.1,5.7139592]
[1745550759071,3.31703251,1750.2,1750.1,6.4938592]
[1745550759387,0.31703251,1750.2,1750.1,7.8722862]
[1745550760088,3.0,1750.4,1750.1,2.158327]
[1745550760386,3.0,1750.4,1750.1,0.15762897]
[1745550760597,3.0,1750.4,1750.1,5.87141355]
[1745550760970,3.31703251,1750.4,1750.1,5.87141355]
[1745550761170,3.31703251,1750.4,1750.1,0.15762897]
[1745550761372,3.31703251,1750.4,1750.1,5.87141024]
[1745550761572,3.0,1750.4,1750.1,5.87141024]
[1745550762393,3.0,1750.4,1750.2,5.71349689]
[1745550762598,3.0,1750.4,1750.2,5.86940142]
[1745550763488,3.0,1750.4,1750.2,6.68669582]
[1745550763685,3.0,1750.4,1750.2,7.92674845]
[1745550763866,3.0,1750.4,1750.2,7.92680594]
[1745550764068,3.0,1750.4,1750.2,2.21335716]
[1745550764321,3.0,1750.4,1750.2,0.97330453]
[1745550764605,3.0,1750.4,1750.2,0.15590453]
[1745550764768,3.0,1750.4,1750.2,5.71362761]
[1745550765102,3.0,1750.4,1750.3,0.1554122]
[1745550765806,3.0,1750.4,1750.1,0.8118]
[1745550766100,3.78730637,1750.4,1750.0,5.7140597]
[1745550766318,3.78730637,1750.4,1750.2,0.14000652]
[1745550766498,3.78730637,1750.4,1750.1,0.14049891]
[1745550766700,3.78730637,1750.4,1750.3,0.13951419]
[1745550766908,3.78730637,1750.4,1750.2,0.14000652]
[1745550767115,3.78730637,1750.4,1750.0,5.71411827]
[1745550767116,3.78730637,1750.4,1750.3,0.13951419]
[1745550767486,3.78730637,1750.4,1750.1,5.7139486]
[1745550767690,3.78730637,1750.4,1750.3,0.12793076]
[1745550768010,3.78730637,1750.4,1750.3,0.12868343]
[1745550768221,3.78730637,1750.4,1750.2,5.71363173]
[1745550768530,3.0,1750.4,1750.3,0.12868343]
[1745550769121,3.0,1750.4,1750.0,5.71404971]
[1745550769330,3.0,1750.4,1750.3,0.12868343]
[1745550769516,3.0,1750.4,1750.0,6.36558943]
[1745550769718,3.0,1750.4,1750.3,0.12868343]
[1745550769917,3.0,1750.4,1750.0,5.71412759]
[1745550770097,3.0,1750.4,1750.3,0.12868343]
[1745550770425,3.0,1750.4,1750.0,5.71405748]
[1745550770633,3.0,1750.4,1750.3,0.12868343]
[1745550770802,3.0,1750.4,1750.0,5.71405748]
[1745550771001,0.78730637,1750.1,1749.5,6.51110273]
[1745550771231,0.78730637,1749.8,1749.5,0.7953]
[1745550771419,5.364,1749.7,1749.3,6.51168895]
[1745550771624,5.364,1749.7,1749.3,0.7953]
[1745550772404,3.78730637,1749.6,1749.1,5.7170639]
[1745550772615,0.37873064,1749.5,1749.1,12.2289726]
[1745550772812,3.78730637,1749.6,1749.2,5.716872]
[1745550773106,3.78730637,1749.6,1749.1,6.5119087]
[1745550773328,4.10290454,1749.6,1749.1,6.5119087]
[1745550773499,4.53644764,1749.6,1749.1,6.5119087]
[1745550773925,4.53644764,1749.6,1749.2,5.71684574]
[1745550774438,4.53644764,1749.6,1749.3,0.13368598]
[1745550775440,4.53644764,1749.6,1749.1,6.51194222]
[1745550775651,4.53644764,1749.6,1749.4,0.13319314]
[1745550776021,4.53644764,1749.6,1749.1,6.51194222]
[1745550776219,4.53644764,1749.6,1749.0,5.71738838]
[1745550776419,4.53644764,1749.6,1749.1,5.71707608]
[1745550776734,4.53644764,1749.6,1749.0,5.71732343]
[1745550776925,4.53644764,1749.6,1749.1,5.71709141]
[1745550777264,4.53644764,1749.6,1749.1,5.85176323]
[1745550779038,4.53644764,1749.6,1749.1,0.13467182]
[1745550779235,4.53644764,1749.6,1749.1,5.8518748]
[1745550781850,4.53644764,1749.6,1749.1,5.85166327]
[1745550782155,4.53644764,1749.6,1749.1,5.8517339]
[1745550782520,4.53644764,1749.6,1749.1,5.85163939]
[1745550782726,4.53644764,1749.6,1749.1,0.13467182]
[1745550783666,4.53644764,1749.6,1748.9,6.50745698]
[1745550783865,4.53644764,1749.6,1749.2,0.14043264]
[1745550784067,4.53644764,1749.6,1748.9,6.50742172]
[1745550784287,4.53644764,1749.6,1749.3,0.13993975]
[1745550784482,4.53644764,1749.6,1749.0,5.71754144]
[1745550785088,4.53644764,1749.6,1749.1,0.14092559]
[1745550785290,0.78730637,1749.4,1749.1,0.14092559]
[1745550785462,3.0,1749.2,1748.7,0.7705]
[1745550785792,3.0,1749.2,1748.7,12.2071583]
[1745550785995,3.0,1749.2,1748.8,5.71818557]
[1745550786193,3.0,1749.2,1748.7,6.48871153]
[1745550786367,3.31544018,1749.2,1748.7,6.48871153]
[1745550786890,3.31544018,1749.2,1748.7,0.7705]
[1745550787084,3.31544018,1749.2,1748.8,5.71808204]
[1745550787276,3.31544018,1749.2,1748.7,12.20716622]
[1745550787474,3.31544018,1749.2,1748.8,5.71819676]
[1745550787694,3.31544018,1749.2,1748.7,6.48883659]
[1745550788064,3.31544018,1749.2,1748.8,5.71818787]
[1745550789196,3.31544018,1749.2,1748.9,0.14191167]
[1745550789389,3.0,1749.2,1748.8,5.71818787]
[1745550789584,3.0,1749.2,1748.9,0.14191167]
[1745550789897,3.0,1749.2,1748.8,5.71818787]
[1745550790093,3.0,1749.2,1749.0,0.1414186]
[1745550790295,0.3,1749.1,1748.9,0.14317859]
[1745550790496,0.3,1749.1,1748.8,5.71818787]
[1745550791277,0.3,1749.1,1748.8,5.71800721]
[1745550791483,0.73871937,1749.1,1748.8,5.71800721]
[1745550795594,0.73871937,1749.1,1748.6,11.43732676]
[1745550795792,0.73871937,1749.1,1748.7,5.71851863]
[1745550796207,0.73871937,1749.1,1748.8,5.71819206]
[1745550796700,0.73871937,1749.1,1748.7,5.71831176]